fUST/lending_fUST_20250926
["ID","MTS","AMOUNT","RATE_DAILY","PERIOD"]
[387801265,1758882079003,-500.0,0.0002508,2]
[387801266,1758882079033,-500.0,0.0002508,2]
[387801267,1758882079065,-500.0,0.0002508,2]
[387801268,1758882079095,-500.0,0.0002508,2]
[387801269,1758882079230,-500.0,0.0002508,2]
[387801270,1758882079264,-500.0,0.0002508,2]
[387801271,1758882079294,-500.0,0.0002508,2]
[387801272,1758882079324,-500.0,0.0002508,2]
[387801273,1758882079355,-500.0,0.0002508,2]
[387801274,1758882079447,-500.0,0.0002508,2]
[387801275,1758882079476,-500.0,0.0002508,2]
[387801276,1758882079505,-500.0,0.0002508,2]
[387801277,1758882079534,-500.0,0.0002508,2]
[387801278,1758882079563,-500.0,0.0002508,2]
[387801279,1758882079590,-500.0,0.0002508,2]
[387801280,1758882079618,-500.0,0.0002508,2]
[387801281,1758882079645,-500.0,0.0002508,2]
[387801282,1758882079674,-500.0,0.0002508,2]
[387801283,1758882079702,-500.0,0.0002508,2]
[387801284,1758882079983,-200.0,0.0002508,2]
[387801285,1758882079992,-94.00029874,0.0002508,2]
[387801286,1758882080005,-0.01,0.0002508,2]
[387801287,1758882088979,-5000.0,0.00024829,8]
[387801288,1758882089012,-0.01,0.0002508,2]
[387801290,1758882099005,-405.97970126,0.0002508,2]
[387801291,1758882099036,-500.0,0.0002508,2]
[387801292,1758882099067,-500.0,0.0002508,2]
[387801293,1758882099096,-500.0,0.0002508,2]
[387801294,1758882099223,-500.0,0.0002508,2]
[387801295,1758882099253,-500.0,0.0002508,2]
[387801296,1758882099284,-500.0,0.0002508,2]
[387801297,1758882099314,-500.0,0.0002508,2]
[387801298,1758882099343,-500.0,0.0002508,2]
[387801299,1758882099372,-404.41274289,0.0002508,2]
[387801300,1758882099525,-379.2251117,0.0002508,2]
[387801301,1758882108985,-1022.877356,0.00024538,2]
[387801302,1758882109014,-2954.255288,0.00024829,8]
[387801303,1758882109050,-2045.744712,0.00024829,8]
[387801304,1758882119011,-5000.0,0.00024581,8]
[387801305,1758882119045,-0.01,0.00025063,9]
[387801306,1758882129062,-256.35033698,0.000246,2]
[387801307,1758882129090,-181.839249,0.00024729,2]
[387801308,1758882129118,-4123.63082804,0.00024812,8]
[387801309,1758882129167,-876.36917196,0.00024812,8]
[387801310,1758882139074,-5000.0,0.00024812,8]
[387801311,1758882139116,-0.01,0.00025063,9]
[387801312,1758882148559,5000.0,0.00024,8]
[387801313,1758882154150,-236.55179015,0.000199,4]
[387801316,1758882156516,5000.0,0.00024,8]
[387801317,1758882157268,-165.48631378,0.000199,4]
[387801318,1758882158712,-290.29063481,0.000199,4]
[387801319,1758882159425,-1307.67126126,0.000199,4]
[387801320,1758882159453,-2000.0,0.000199,4]
[387801321,1758882159481,-1384.66747748,0.000199,4]
[387801322,1758882159528,-615.33252252,0.000199,4]
[387801323,1758882169173,-2000.0,0.000199,4]
[387801324,1758882169211,-746.635,0.000199,4]
[387801325,1758882169250,-500.0,0.00023858,2]
[387801326,1758882169288,-500.0,0.00024652,2]
[387801327,1758882169323,-380.0,0.00024744,2]
[387801328,1758882169359,-163.978,0.00025063,9]
[387801329,1758882169394,-218.784,0.0002508,2]
[387801330,1758882169529,-981.216,0.0002508,2]
[387801331,1758882179158,-5000.0,0.0002483,8]
[387801332,1758882179193,-0.01,0.00025081,2]
[387801333,1758882189185,-5000.0,0.00024582,8]
[387801334,1758882189219,-0.01,0.0002508,2]
[387801335,1758882209358,-5000.0,0.00024581,8]
[387801336,1758882209391,-0.01,0.00024829,8]
[387801337,1758882239346,-5000.0,0.00024581,8]
[387801338,1758882239378,-0.01,0.00024829,8]
[387801339,1758882259400,-209.17007113,0.000199,2]
[387801340,1758882259428,-209.17007089,0.00020972,2]
[387801341,1758882259456,-209.17007089,0.00022044,2]
[387801342,1758882259484,-209.17007089,0.00023116,2]
[387801343,1758882259513,-209.17007089,0.00024187,2]
[387801344,1758882259542,-2908.30929062,0.00024482,8]
[387801345,1758882259629,-2091.69070938,0.00024482,8]
[387801346,1758882279462,-5000.0,0.00024482,8]
[387801347,1758882279493,-0.01,0.00024729,2]
[387801348,1758882299491,-5000.0,0.00024482,8]
[387801349,1758882299522,-0.01,0.00024729,2]
[387801358,1758882329506,-5000.0,0.00024482,8]
[387801359,1758882329542,-0.01,0.00024729,2]
[387801365,1758882349550,-5000.0,0.00024482,8]
[387801366,1758882349595,-0.01,0.00024729,2]
[387801367,1758882369643,-5000.0,0.00024482,8]
[387801368,1758882369678,-0.01,0.00024729,2]
[387801390,1758882399691,-5000.0,0.00024237,8]
[387801391,1758882399731,-0.01,0.00024482,8]
[387801392,1758882399961,-4999.99,0.00024482,8]
[387801393,1758882400001,-0.03,0.00024729,2]
[387801397,1758882409644,-5000.0,0.00024482,8]
[387801398,1758882409709,-0.01,0.00024729,2]
[387801399,1758882409792,-213.20292963,0.00024729,2]
[387801400,1758882409832,-300.0,0.00024828,2]
[387801401,1758882409870,-300.0,0.00024828,2]
[387801402,1758882409908,-300.0,0.00024828,2]
[387801403,1758882409945,-1200.0,0.00024828,2]
[387801404,1758882409985,-300.0,0.00024828,2]
[387801405,1758882410021,-1000.0,0.00025081,2]
[387801406,1758882410055,-1000.0,0.00025081,2]
[387801407,1758882410348,-773.60414074,0.00025081,2]
[387801409,1758882419617,-5000.0,0.0002483,8]
[387801410,1758882419652,-0.01,0.00025081,2]
[387801412,1758882429664,-300.0,0.0002508,2]
[387801413,1758882429692,-226.38585926,0.00025081,2]
[387801414,1758882429719,-1000.0,0.00025081,2]
[387801415,1758882429854,-1000.0,0.00025081,2]
[387801416,1758882429883,-1000.0,0.00025081,2]
[387801417,1758882429910,-1000.0,0.00025081,2]
[387801418,1758882430040,-947.23828148,0.00025081,2]
[387801419,1758882439636,-500.0,0.00024135,2]
[387801420,1758882439666,-4000.01,0.00024581,8]
[387801421,1758882439701,-999.99,0.00024581,8]
[387801424,1758882449720,-500.0,0.00023053,2]
[387801425,1758882449750,-500.0,0.00023133,2]
[387801426,1758882449779,-500.0,0.0002338,2]
[387801427,1758882449811,-500.0,0.00024511,2]
[387801428,1758882449841,-1000.01,0.00024829,8]
[387801429,1758882449918,-3999.99,0.00024829,8]
[387801430,1758882454700,5000.0,0.00024,8]
[387801431,1758882462791,977.26647964,0.00024,8]
[387801434,1758882478817,5000.0,0.00024,8]
[387801438,1758882496879,3994.0,0.00018,2]
[387801440,1758882502063,5000.0,0.00024,8]
[387801450,1758882520082,-500.0,0.00023742,2]
[387801451,1758882520119,-500.0,0.00023998,2]
[387801452,1758882520148,-1710.76608314,0.00024,2]
[387801453,1758882520177,-1737.76542879,0.000248,4]
[387801455,1758882521176,157.81639672,0.00030577,60]
[387801457,1758882526126,4500.0,0.00026,60]
[387801458,1758882528914,-458.70555099,0.00024,2]
[387801459,1758882528945,-4082.59889802,0.00024255,8]
[387801460,1758882533358,5000.0,0.00024,8]
[387801461,1758882539789,-917.40110198,0.00024255,8]
[387801462,1758882539819,-663.81953528,0.000245,2]
[387801463,1758882539849,-403.3611297,0.00024787,2]
[387801464,1758882539877,-1200.0,0.0002508,2]
[387801465,1758882539905,-60.71006794,0.00025081,2]
[387801466,1758882540072,-1581.24289639,0.00025081,2]
[387801467,1758882559936,-5000.0,0.0002483,8]
[387801468,1758882559969,-0.01,0.00025081,2]
[387801476,1758882580096,-5000.0,0.0002483,8]
[387801477,1758882580131,-0.01,0.00025081,2]
[387801479,1758882610017,-5000.0,0.00024583,8]
[387801480,1758882610051,-0.01,0.00024831,8]
[387801482,1758882617248,2500.0,0.00028767,120]
[387801517,1758882632444,-4999.99,0.00024831,8]
[387801518,1758882632458,-160.0,0.00025078,2]
[387801519,1758882632468,-233.71402077,0.00025081,2]
[387801520,1758882632477,-160.0,0.00025081,2]
[387801521,1758882632487,-417.15472785,0.00025081,2]
[387801523,1758882632496,-1200.0,0.00025098,2]
[387801524,1758882632506,-300.0,0.00025099,2]
[387801525,1758882632515,-300.0,0.00025099,2]
[387801526,1758882632525,-300.0,0.00025099,2]
[387801527,1758882632534,-300.0,0.00025099,2]
[387801528,1758882632543,-300.0,0.00025099,2]
[387801529,1758882632552,-300.0,0.000251,2]
[387801530,1758882632562,-300.0,0.000251,2]
[387801531,1758882632571,-300.0,0.000251,2]
[387801532,1758882632580,-1000.0,0.0002527,2]
[387801533,1758882632590,-3950.60109733,0.0002527,2]
[387801534,1758882632600,-500.0,0.00025634,7]
[387801535,1758882632610,-229.18,0.00025772,2]
[387801536,1758882632619,-271.14209458,0.00025773,2]
[387801537,1758882632628,-500.0,0.00025773,2]
[387801538,1758882632637,-500.0,0.00025773,2]
[387801539,1758882632646,-500.0,0.000258,2]
[387801540,1758882632658,-502.03887346,0.000258,2]
[387801541,1758882632667,-500.0,0.000258,2]
[387801542,1758882632677,-500.0,0.000258,2]
[387801543,1758882632686,-500.0,0.00026,2]
[387801544,1758882632695,-500.0,0.00026,2]
[387801545,1758882632705,-1582.16537787,0.00026,10]
[387801546,1758882632714,-229.18,0.00026045,2]
[387801547,1758882632723,-194.67794271,0.00026218,2]
[387801548,1758882632731,-576.13562132,0.00026225,2]
[387801549,1758882632741,-500.0,0.00026225,2]
[387801550,1758882632751,-500.0,0.00026318,2]
[387801551,1758882632760,-500.0,0.00026318,2]
[387801552,1758882632769,-332.91369993,0.00026318,2]
[387801553,1758882632779,-500.0,0.00026318,2]
[387801554,1758882632788,-303.28736853,0.00026318,2]
[387801555,1758882632798,-288.30561365,0.00026318,2]
[387801556,1758882632807,-500.0,0.00026318,2]
[387801557,1758882632817,-500.0,0.00026318,2]
[387801558,1758882632827,-500.0,0.00026318,2]
[387801559,1758882632836,-500.0,0.00026318,2]
[387801560,1758882632846,-190.25896846,0.00026318,2]
[387801561,1758882632855,-500.0,0.00026318,2]
[387801562,1758882632864,-500.0,0.00026318,2]
[387801563,1758882632874,-500.0,0.00026318,2]
[387801564,1758882632884,-500.0,0.00026318,2]
[387801565,1758882632893,-500.0,0.00026318,2]
[387801566,1758882632904,-500.0,0.00026318,2]
[387801567,1758882632914,-500.0,0.00026319,2]
[387801568,1758882632923,-229.19475481,0.00026319,2]
[387801569,1758882632933,-500.01943084,0.00026348,2]
[387801570,1758882632943,-1000.0,0.00026348,2]
[387801571,1758882632952,-500.0,0.00026348,2]
[387801572,1758882632962,-500.0,0.00026548,2]
[387801573,1758882632971,-500.0,0.00026548,2]
[387801574,1758882632981,-500.0,0.00026593,2]
[387801575,1758882632990,-500.0,0.00026773,2]
[387801576,1758882633000,-365.70302623,0.000269,2]
[387801577,1758882633009,-189.92687469,0.000269,2]
[387801578,1758882633019,-500.0,0.000269,2]
[387801579,1758882633028,-500.0,0.000269,2]
[387801580,1758882633038,-500.0,0.000269,2]
[387801581,1758882633049,-500.0,0.000269,2]
[387801582,1758882633062,-500.0,0.000269,2]
[387801583,1758882633071,-500.0,0.000269,2]
[387801584,1758882633081,-470.33970475,0.000269,2]
[387801585,1758882633091,-500.0,0.000269,2]
[387801586,1758882633101,-500.0,0.000269,2]
[387801587,1758882633111,-2217.90217716,0.00027,5]
[387801588,1758882633121,-1680.0,0.00027168,2]
[387801589,1758882633131,-420.0,0.00027188,2]
[387801590,1758882633141,-420.0,0.00027188,2]
[387801591,1758882633151,-420.0,0.00027188,2]
[387801592,1758882633161,-420.0,0.00027188,2]
[387801593,1758882633171,-1200.0,0.0002731,2]
[387801594,1758882633181,-500.0,0.00027383,7]
[387801595,1758882633190,-154.07,0.00027825,15]
[387801596,1758882633199,-500.0,0.00027873,7]
[387801597,1758882633208,-424.76579537,0.00027925,2]
[387801598,1758882633218,-154.07,0.00027925,15]
[387801599,1758882633227,-1200.99161519,0.00028,2]
[387801600,1758882633238,-209.05319987,0.00028,2]
[387801601,1758882633249,-154.07,0.00028025,15]
[387801602,1758882633258,-154.09,0.00028125,15]
[387801603,1758882633268,-1596.50371554,0.000285,7]
[387801604,1758882633278,-169.06105871,0.000288,7]
[387801605,1758882633288,-879.11405125,0.00029,2]
[387801606,1758882633297,-209.0,0.00029,2]
[387801607,1758882633307,-160.0,0.00029087,2]
[387801608,1758882633317,-1512.1776864,0.0002911,2]
[387801609,1758882633326,-160.0,0.0002936,2]
[387801610,1758882633334,-549.6311257,0.00029373,5]
[387801611,1758882633344,-603.21981312,0.00029373,5]
[387801612,1758882633353,-1200.0,0.00029429,2]
[387801613,1758882633362,-300.0,0.0002945,2]
[387801614,1758882633372,-303.0,0.0002945,2]
[387801615,1758882633381,-300.0,0.0002945,2]
[387801616,1758882633391,-567.0,0.0002945,2]
[387801617,1758882633401,-260.0,0.00029908,2]
[387801618,1758882633411,-1131.18,0.0003,2]
[387801619,1758882633421,-1000.0,0.000301,2]
[387801620,1758882633430,-1131.18,0.0003014,2]
[387801621,1758882633440,-1131.18,0.0003028,2]
[387801622,1758882633449,-944.73,0.0003038,30]
[387801623,1758882633458,-360.0,0.00030456,2]
[387801624,1758882633468,-500.0,0.00030577,2]
[387801625,1758882633478,-189.52,0.00030577,2]
[387801626,1758882633488,-1000.0,0.00030577,14]
[387801627,1758882633497,-1000.0,0.00030577,14]
[387801628,1758882633506,-1004.63643091,0.00030577,14]
[387801629,1758882633516,-164.26497136,0.00030577,14]
[387801630,1758882633526,-151.0,0.00030577,14]
[387801631,1758882633535,-151.0,0.00030577,14]
[387801632,1758882633544,-151.0,0.00030577,14]
[387801633,1758882633554,-151.0,0.00030577,14]
[387801634,1758882633563,-152.51409887,0.00030577,14]
[387801635,1758882633573,-250.0,0.00030606,10]
[387801636,1758882633582,-250.0,0.00030606,10]
[387801637,1758882633592,-255.776446,0.00030606,10]
[387801638,1758882633601,-500.0,0.0003089,7]
[387801639,1758882633611,-460.0,0.00031004,2]
[387801640,1758882633621,-1000.0,0.00031053,2]
[387801641,1758882633631,-1000.0,0.0003119,2]
[387801642,1758882633640,-1000.0,0.00031327,2]
[387801643,1758882633651,-500.0,0.00031406,7]
[387801644,1758882633660,-957.51638402,0.00031464,2]
[387801645,1758882633670,-560.0,0.00031552,2]
[387801646,1758882633678,-500.0,0.00032077,7]
[387801647,1758882633687,-440.0,0.000321,2]
[387801648,1758882633698,-168.0,0.00032123,2]
[387801649,1758882633707,-480.02,0.0003232,30]
[387801650,1758882633717,-500.0,0.00032339,7]
[387801651,1758882633727,-500.0,0.00032396,7]
[387801652,1758882633736,-168.0,0.00032481,2]
[387801653,1758882633745,-500.9810205,0.0003275,5]
[387801654,1758882633755,-500.0,0.00032856,5]
[387801655,1758882633764,-500.0,0.00032856,5]
[387801656,1758882633774,-500.0,0.00032856,5]
[387801657,1758882633783,-500.0,0.00032856,5]
[387801658,1758882633792,-500.0,0.00032856,5]
[387801659,1758882633802,-294.6127472,0.00032856,5]
[387801660,1758882633811,-500.0,0.00032856,5]
[387801661,1758882633820,-500.0,0.00032856,5]
[387801662,1758882633830,-500.0,0.00032859,7]
[387801663,1758882633840,-1430.800729,0.00032877,2]
[387801664,1758882633849,-250.0,0.0003314,2]
[387801665,1758882633859,-165.66239392,0.000332,117]
[387801666,1758882633868,-317.29972179,0.000334,5]
[387801667,1758882633879,-504.04200691,0.000334,5]
[387801668,1758882633889,-500.0,0.00033404,5]
[387801669,1758882633898,-1000.0,0.00033404,5]
[387801670,1758882633910,-500.0,0.00033404,5]
[387801671,1758882633920,-1000.0,0.00033404,5]
[387801672,1758882633929,-395.4448845,0.00033613,5]
[387801673,1758882633938,-1500.0,0.00033951,5]
[387801674,1758882633948,-168.0,0.00034245,2]
[387801675,1758882633957,-168.0,0.00034306,2]
[387801676,1758882633966,-500.0,0.00034499,120]
[387801677,1758882633975,-10000.0,0.000345,30]
[387801678,1758882633985,-500.0,0.00034506,7]
[387801679,1758882633994,-476.36,0.00034863,3]
[387801680,1758882634003,-396.97,0.00034863,3]
[387801681,1758882634014,-198.48,0.00034863,3]
[387801682,1758882634024,-595.49,0.00034863,3]
[387801683,1758882634035,-73409.34597075,0.00034873,2]
[387801684,1758882634045,-500.0,0.00034873,5]
[387801685,1758882634057,-501.06641698,0.00034873,5]
[387801686,1758882634068,-500.0,0.00034873,5]
[387801687,1758882634078,-500.0,0.00034873,5]
[387801688,1758882634089,-640.78359547,0.00034931,60]
[387801689,1758882634099,-500.0,0.00034937,7]
[387801690,1758882634110,-1000.0,0.00034962,2]
[387801691,1758882634119,-1000.0,0.00034962,2]
[387801692,1758882634131,-1000.0,0.00034962,2]
[387801693,1758882634142,-1000.0,0.00034962,2]
[387801694,1758882634152,-1000.0,0.00034962,2]
[387801695,1758882634162,-1000.0,0.00034972,2]
[387801696,1758882634172,-353.2065152,0.00034972,2]
[387801697,1758882634182,-991.429,0.0003499,2]
[387801698,1758882634192,-2160.0,0.0003499,2]
[387801699,1758882634202,-635.0,0.0003499,2]
[387801700,1758882634212,-410.0,0.0003499,2]
[387801701,1758882634222,-660.0,0.00035,5]
[387801702,1758882634232,-5000.0,0.00035,40]
[387801703,1758882634242,-500.0,0.00035321,120]
[387801704,1758882634252,-500.0,0.00035382,5]
[387801705,1758882634262,-1003.29375609,0.00035421,5]
[387801706,1758882634271,-617.78762633,0.00035421,5]
[387801707,1758882634280,-500.0,0.0003563,30]
[387801708,1758882634290,-5000.0,0.00036,50]
[387801709,1758882634300,-500.0,0.00036143,120]
[387801710,1758882634309,-500.0,0.0003623,30]
[387801711,1758882634318,-793.94,0.00036233,3]
[387801712,1758882634328,-396.96,0.00036233,3]
[387801713,1758882634338,-1022.877356,0.00036807,2]
[387801714,1758882634347,-500.0,0.00036965,120]
[387801715,1758882634356,-216.70576714,0.00037,120]
[387801716,1758882634366,-500.0,0.00037244,5]
[387801717,1758882634375,-5000.0,0.000375,60]
[387801718,1758882634385,-500.0,0.00037622,3]
[387801719,1758882634395,-151.0,0.00037622,3]
[387801720,1758882634405,-500.0,0.00037622,3]
[387801721,1758882634415,-281.80670484,0.00037622,3]
[387801722,1758882634425,-500.0,0.00037787,120]
[387801723,1758882634435,-500.0,0.00037896,3]
[387801724,1758882634445,-500.0,0.00037896,3]
[387801725,1758882634454,-978.0,0.0003799,2]
[387801726,1758882634464,-2159.0,0.0003799,2]
[387801727,1758882634473,-635.0,0.0003799,2]
[387801728,1758882634484,-9307.20400653,0.00038,30]
[387801729,1758882634493,-500.0,0.0003817,3]
[387801730,1758882634502,-500.0,0.0003817,3]
[387801731,1758882634512,-239.33815656,0.00038256,2]
[387801732,1758882634522,-2492.88072088,0.0003835,7]
[387801733,1758882634536,-545896.09672181,0.0003835,7]
[387801734,1758882634555,-488.97287621,0.0003835,7]
[387801735,1758882634568,-1264.84367216,0.0003835,7]
[387801763,1758882638065,-424.76579536,0.00032413,2]
[387801765,1758882638074,-83490.14502473,0.0003835,7]
[387801771,1758882638121,-66136.45919435,0.0003835,7]
[387801773,1758882638135,-139531.30405885,0.0003835,7]
[387801776,1758882638148,-20000.0,0.0003835,7]
[387801778,1758882638161,-23714.58091379,0.0003835,7]
[387801780,1758882638173,-102324.11097557,0.0003835,7]
[387801955,1758882643201,-5000.0,0.00024953,8]
[387801957,1758882643210,-159.362376,0.00035559,60]
[387801959,1758882643219,-424.76579536,0.000369,2]
[387801961,1758882643228,-166928.39128566,0.0003835,7]
[387801963,1758882643238,-232.696,0.00038355,2]
[387801965,1758882643246,-480.0,0.00038356,30]
[387801967,1758882643256,-200.0,0.00038356,30]
[387801969,1758882643266,-480.0,0.00038356,30]
[387801971,1758882643275,-480.0,0.00038356,30]
[387801973,1758882643284,-480.0,0.00038356,30]
[387801975,1758882643293,-482.56166886,0.00038356,30]
[387801976,1758882643302,-485.99898309,0.00038356,30]
[387801977,1758882643311,-480.0,0.00038356,30]
[387801978,1758882643320,-480.0,0.00038356,30]
[387801979,1758882643329,-480.0,0.00038356,30]
[387801980,1758882643338,-480.0,0.00038356,30]
[387801981,1758882643348,-481.57949095,0.00038356,30]
[387801982,1758882643357,-480.0,0.00038356,30]
[387801983,1758882643367,-500.0,0.00038356,14]
[387801985,1758882643376,-480.0,0.00038356,30]
[387801987,1758882643386,-480.0,0.00038356,30]
[387801989,1758882643395,-480.0,0.00038356,30]
[387801990,1758882643404,-490.74476191,0.00038356,30]
[387801991,1758882643413,-480.0,0.00038356,30]
[387801992,1758882643422,-480.0,0.00038356,30]
[387801993,1758882643431,-480.0,0.00038356,30]
[387801994,1758882643440,-480.0,0.00038356,30]
[387801995,1758882643449,-480.0,0.00038356,30]
[387801996,1758882643458,-483.00016226,0.00038356,30]
[387801997,1758882643467,-480.0,0.00038356,30]
[387801998,1758882643477,-480.0,0.00038356,30]
[387801999,1758882643485,-481.70985745,0.00038356,30]
[387802000,1758882643494,-480.0,0.00038356,30]
[387802001,1758882643503,-260.53087835,0.00038356,30]
[387802002,1758882643512,-531.68698162,0.00038356,30]
[387802003,1758882643522,-480.0,0.00038356,30]
[387802005,1758882643531,-480.0,0.00038356,30]
[387802006,1758882643540,-480.0,0.00038356,30]
[387802008,1758882643549,-480.0,0.00038356,30]
[387802009,1758882643558,-483.54328102,0.00038356,30]
[387802011,1758882643567,-480.0,0.00038356,30]
[387802013,1758882643577,-480.0,0.00038356,30]
[387802016,1758882643587,-628.31035156,0.00038356,30]
[387802018,1758882643595,-480.0,0.00038356,30]
[387802020,1758882643604,-480.0,0.00038356,30]
[387802022,1758882643613,-480.0,0.00038356,30]
[387802024,1758882643623,-480.0,0.00038356,30]
[387802026,1758882643632,-480.0,0.00038356,30]
[387802027,1758882643642,-480.0,0.00038356,30]
[387802029,1758882643651,-480.0,0.00038356,30]
[387802031,1758882643660,-480.0,0.00038356,30]
[387802033,1758882643670,-480.0,0.00038356,30]
[387802035,1758882643679,-480.0,0.00038356,30]
[387802037,1758882643687,-480.0,0.00038356,30]
[387802039,1758882643696,-480.0,0.00038356,30]
[387802041,1758882643705,-480.0,0.00038356,30]
[387802043,1758882643714,-480.0,0.00038356,30]
[387802045,1758882643723,-480.0,0.00038356,30]
[387802047,1758882643733,-480.0,0.00038356,30]
[387802049,1758882643742,-480.0,0.00038356,30]
[387802051,1758882643751,-480.0,0.00038356,30]
[387802053,1758882643761,-480.0,0.00038356,30]
[387802055,1758882643770,-480.0,0.00038356,30]
[387802057,1758882643779,-480.0,0.00038356,30]
[387802059,1758882643788,-480.0,0.00038356,30]
[387802061,1758882643798,-480.0,0.00038356,30]
[387802063,1758882643807,-480.0,0.00038356,30]
[387802064,1758882643816,-480.0,0.00038356,30]
[387802066,1758882643825,-480.0,0.00038356,30]
[387802068,1758882643834,-480.0,0.00038356,30]
[387802070,1758882643844,-479.45014498,0.00038356,30]
[387802072,1758882643853,-480.0,0.00038356,30]
[387802075,1758882643864,-480.0,0.00038356,30]
[387802077,1758882643873,-480.0,0.00038356,30]
[387802079,1758882643882,-480.0,0.00038356,30]
[387802081,1758882643891,-480.0,0.00038356,30]
[387802083,1758882643900,-484.47828682,0.00038356,30]
[387802085,1758882643910,-480.0,0.00038356,30]
[387802087,1758882643920,-486.4257992,0.00038356,30]
[387802089,1758882643929,-480.0,0.00038356,30]
[387802091,1758882643939,-480.0,0.00038356,30]
[387802093,1758882643948,-480.0,0.00038356,30]
[387802094,1758882643957,-467.19410107,0.00038356,30]
[387802096,1758882643967,-480.0,0.00038356,30]
[387802098,1758882643975,-480.0,0.00038356,30]
[387802100,1758882643984,-481.75793159,0.00038356,30]
[387802102,1758882643993,-480.0,0.00038356,30]
[387802104,1758882644002,-480.0,0.00038356,30]
[387802106,1758882644012,-480.0,0.00038356,30]
[387802108,1758882644021,-480.0,0.00038356,30]
[387802110,1758882644030,-480.0,0.00038356,30]
[387802112,1758882644039,-480.0,0.00038356,30]
[387802114,1758882644051,-480.0,0.00038356,30]
[387802116,1758882644065,-480.0,0.00038356,30]
[387802118,1758882644074,-582.08110511,0.00038356,30]
[387802120,1758882644083,-480.0,0.00038356,30]
[387802122,1758882644093,-480.0,0.00038356,30]
[387802124,1758882644102,-480.0,0.00038356,30]
[387802126,1758882644111,-480.0,0.00038356,30]
[387802128,1758882644120,-480.0,0.00038356,30]
[387802130,1758882644131,-484.35256507,0.00038356,30]
[387802132,1758882644141,-480.0,0.00038356,30]
[387802134,1758882644150,-480.0,0.00038356,30]
[387802136,1758882644158,-486.5410589,0.00038356,30]
[387802138,1758882644167,-480.0,0.00038356,30]
[387802140,1758882644177,-480.0,0.00038356,30]
[387802142,1758882644187,-480.0,0.00038356,30]
[387802144,1758882644195,-480.0,0.00038356,30]
[387802146,1758882644205,-480.0,0.00038356,30]
[387802148,1758882644214,-480.0,0.00038356,30]
[387802150,1758882644223,-480.0,0.00038356,30]
[387802152,1758882644232,-480.0,0.00038356,30]
[387802154,1758882644241,-480.0,0.00038356,30]
[387802156,1758882644251,-481.81974587,0.00038356,30]
[387802158,1758882644260,-480.0,0.00038356,30]
[387802160,1758882644269,-480.0,0.00038356,30]
[387802162,1758882644278,-480.0,0.00038356,30]
[387802164,1758882644287,-480.0,0.00038356,30]
[387802166,1758882644296,-480.0,0.00038356,30]
[387802168,1758882644305,-480.0,0.00038356,30]
[387802170,1758882644315,-480.0,0.00038356,30]
[387802172,1758882644324,-480.0,0.00038356,30]
[387802174,1758882644334,-480.0,0.00038356,30]
[387802176,1758882644343,-480.0,0.00038356,30]
[387802178,1758882644353,-480.0,0.00038356,30]
[387802179,1758882644362,-480.0,0.00038356,30]
[387802181,1758882644371,-607.38928171,0.00038356,30]